bitfinex-derivatives/quotes_BTCF0:USTF0_20250904
["timestamp","ask_amount","ask_price","bid_price","bid_amount"]
[1756999281763,0.74075587,109390.0,109380.0,2.86241385]
[1756999281964,0.74075587,109390.0,109380.0,2.6995229]
[1756999283460,0.74275587,109390.0,109380.0,3.0603229]
[1756999283968,0.40144504,109390.0,109380.0,3.40163373]
[1756999284164,0.74475587,109390.0,109380.0,3.0603229]
[1756999284369,0.74475587,109390.0,109380.0,3.22321385]
[1756999284971,0.74475587,109390.0,109380.0,1.92157385]
[1756999285267,0.40344504,109390.0,109380.0,2.85613385]
[1756999285569,0.74475587,109390.0,109380.0,2.85613385]
[1756999286070,0.74475587,109390.0,109380.0,2.6929229]
[1756999286471,0.40344504,109390.0,109380.0,2.6929229]
[1756999286666,0.74475587,109390.0,109380.0,2.6929229]
[1756999287767,0.40344504,109390.0,109380.0,2.6929229]
[1756999287963,0.40344504,109390.0,109380.0,1.30804083]
[1756999288169,0.74475587,109390.0,109380.0,1.32753]
[1756999288571,0.40344504,109390.0,109380.0,1.32753]
[1756999288771,0.74475587,109390.0,109380.0,1.32753]
[1756999288972,0.40344504,109390.0,109380.0,1.32753]
[1756999289172,0.40344504,109390.0,109380.0,1.66884083]
[1756999289373,0.74475587,109390.0,109380.0,1.66884083]
[1756999289769,0.73969159,109390.0,109380.0,1.32753]
[1756999290477,0.39838076,109390.0,109380.0,1.32753]
[1756999290674,0.39838076,109390.0,109380.0,1.66884083]
[1756999290873,0.73969159,109390.0,109380.0,1.66884083]
[1756999291274,0.39838076,109390.0,109380.0,2.01015166]
[1756999292079,0.39838076,109390.0,109380.0,2.26015166]
[1756999292080,0.38933522,109390.0,109380.0,2.26015166]
[1756999292280,0.38933522,109390.0,109380.0,1.57753]
[1756999292485,0.38733522,109390.0,109380.0,2.26015166]
[1756999292678,0.38833522,109390.0,109380.0,0.39329]
[1756999292877,0.38833522,109390.0,109380.0,1.38363]
[1756999293082,0.72964605,109390.0,109380.0,1.72494083]
[1756999293476,0.38833522,109390.0,109380.0,1.72490213]
[1756999293671,0.39754407,109390.0,109380.0,1.72490213]
[1756999294070,0.39654407,109390.0,109380.0,1.72390213]
[1756999294778,0.38533522,109390.0,109380.0,1.72390213]
[1756999294984,0.38633522,109390.0,109380.0,2.06532234]
[1756999295577,0.33872522,109390.0,109380.0,2.06532234]
[1756999295777,0.33872522,109390.0,109380.0,2.40659447]
[1756999295978,0.27524522,109390.0,109380.0,2.40659447]
[1756999296376,0.21176522,109390.0,109380.0,2.49800207]
[1756999296574,0.18207522,109390.0,109380.0,2.49800207]
[1756999296777,0.4223995,109390.0,109380.0,2.49800207]
[1756999297386,0.4223995,109390.0,109380.0,2.40659447]
[1756999298086,0.4223995,109390.0,109380.0,2.40303447]
[1756999298286,0.4223995,109390.0,109380.0,2.06176234]
[1756999298481,0.4223995,109390.0,109380.0,0.78653021]
[1756999298788,0.4223995,109390.0,109380.0,2.06132234]
[1756999299184,0.4223995,109390.0,109380.0,2.06084234]
[1756999300284,0.5006695,109390.0,109380.0,0.84635234]
[1756999300479,0.4517995,109390.0,109380.0,1.68793213]
[1756999300679,0.4223995,109390.0,109380.0,1.68793213]
[1756999301489,0.4223995,109390.0,109380.0,1.34666]
[1756999301683,0.4517995,109390.0,109380.0,0.41366]
[1756999301886,0.4517995,109390.0,109380.0,1.68601213]
[1756999302078,0.5006695,109390.0,109380.0,1.68565213]
[1756999302478,0.5006695,109390.0,109380.0,1.34438]
[1756999302683,0.4517995,109390.0,109380.0,1.68565213]
[1756999303383,0.4517995,109390.0,109380.0,1.34438]
[1756999303584,0.4517995,109390.0,109380.0,1.68565213]
[1756999303992,0.5006695,109390.0,109380.0,1.34438]
[1756999304193,0.5006695,109390.0,109380.0,1.68565213]
[1756999304588,0.4223995,109390.0,109380.0,1.68565213]
[1756999306889,0.4223995,109390.0,109380.0,2.02692426]
[1756999307193,0.4223995,109390.0,109380.0,2.11834447]
[1756999307993,0.4223995,109390.0,109380.0,1.77707234]
[1756999308197,0.4223995,109390.0,109380.0,0.50508021]
[1756999308394,0.4223995,109390.0,109380.0,1.43108021]
[1756999308591,0.4517995,109390.0,109380.0,1.77235234]
[1756999309190,0.4223995,109390.0,109380.0,1.77235234]
[1756999309988,0.4223995,109390.0,109380.0,1.43108021]
[1756999310184,0.4223995,109390.0,109380.0,1.77235234]
[1756999310390,0.4997595,109390.0,109380.0,0.50508021]
[1756999310695,0.84103163,109390.0,109380.0,1.33782]
[1756999310895,1.09103163,109390.0,109380.0,1.33782]
[1756999311093,1.09103163,109390.0,109380.0,0.41366]
[1756999311293,1.09103163,109390.0,109380.0,1.34318]
[1756999314801,0.4223995,109390.0,109380.0,2.02572426]
[1756999315094,0.4223995,109390.0,109380.0,1.43460021]
[1756999315296,0.4223995,109390.0,109380.0,2.36714447]
[1756999315500,0.4223995,109390.0,109380.0,1.68460021]
[1756999315799,0.4223995,109390.0,109380.0,2.02587234]
[1756999316197,0.4223995,109390.0,109380.0,2.36714447]
[1756999317699,0.4223995,109390.0,109380.0,2.02587234]
[1756999319397,0.4223995,109390.0,109380.0,1.77587234]
[1756999319600,0.5032595,109390.0,109380.0,0.84635234]
[1756999319796,0.5032595,109390.0,109380.0,1.77015234]
[1756999319999,0.4508895,109390.0,109380.0,1.77015234]
[1756999320193,0.4223995,109390.0,109380.0,1.77015234]
[1756999320794,0.4223995,109390.0,109380.0,1.42888021]
[1756999320995,0.1623995,109390.0,109380.0,2.59006436]
[1756999321194,0.2623995,109390.0,109380.0,2.59006436]
[1756999321396,0.1207823,109420.0,109390.0,0.0913909]
[1756999321595,0.3007823,109420.0,109410.0,0.70207213]
[1756999322103,0.28067066,109420.0,109410.0,0.70207213]
[1756999322298,0.28067066,109420.0,109410.0,0.3608]
[1756999322521,0.30916066,109420.0,109410.0,0.70207213]
[1756999322696,0.31116066,109420.0,109410.0,0.70207213]
[1756999323004,0.2743823,109420.0,109410.0,0.88484967]
[1756999323300,0.2763823,109420.0,109410.0,0.88584967]
[1756999323702,0.2753823,109420.0,109410.0,0.88584967]
[1756999323903,0.2783823,109420.0,109410.0,0.54457754]
[1756999324095,0.2783823,109420.0,109410.0,0.88584967]
[1756999324695,0.2783823,109420.0,109410.0,1.2271218]
[1756999324892,0.187,109420.0,109410.0,1.2271218]
[1756999325497,0.187,109420.0,109410.0,1.4771218]
[1756999326004,0.129,109420.0,109410.0,2.3999618]
[1756999326203,0.129,109420.0,109410.0,2.9699618]
[1756999326498,0.347,109420.0,109410.0,3.09791843]
[1756999326701,0.347,109420.0,109410.0,2.53779843]
[1756999326906,0.344,109420.0,109410.0,2.53879843]
[1756999327205,0.344,109420.0,109410.0,2.53811843]
[1756999327400,0.004,109420.0,109410.0,3.07811843]
[1756999327608,0.114,109420.0,109410.0,3.07811843]
[1756999328007,0.004,109420.0,109410.0,3.07811843]
[1756999328396,0.02849,109460.0,109430.0,0.0913619]
[1756999328601,0.39086,109460.0,109450.0,0.7216]
[1756999328801,0.73213213,109460.0,109450.0,0.99520686]
[1756999328997,0.08086,109450.0,109440.0,0.3609]
[1756999329202,0.43086,109450.0,109440.0,1.6438]
[1756999329799,0.42986,109450.0,109440.0,0.7216]
[1756999330000,1.02113213,109450.0,109440.0,0.7216]
[1756999330206,1.02113213,109450.0,109440.0,1.64312]
[1756999330507,0.08086,109440.0,109430.0,0.3609]
[1756999330712,0.75213213,109440.0,109430.0,0.3608]
[1756999330912,1.00213213,109440.0,109430.0,1.28196]
[1756999331703,0.66086,109440.0,109430.0,1.28196]
[1756999331900,1.00213213,109440.0,109430.0,0.3608]
[1756999332100,0.66086,109440.0,109430.0,1.28176]
[1756999332309,1.00213213,109440.0,109430.0,1.28176]
[1756999332509,1.00213213,109440.0,109430.0,1.28376]
[1756999332711,1.00313213,109440.0,109430.0,1.28376]
[1756999333101,1.00313213,109440.0,109430.0,0.3628]
[1756999333412,1.08438084,109440.0,109430.0,0.92296]
[1756999333711,1.08638084,109440.0,109430.0,0.92296]
[1756999333911,0.41286,109440.0,109430.0,1.28376]
[1756999334113,0.36049,109440.0,109430.0,1.28376]
[1756999334612,0.41286,109440.0,109430.0,1.28376]
[1756999335006,0.41286,109440.0,109430.0,0.3628]
[1756999335314,0.41286,109440.0,109430.0,1.28376]
[1756999336013,0.41086,109440.0,109430.0,1.28176]
[1756999336210,0.41386,109440.0,109430.0,1.28176]
[1756999337013,0.41486,109440.0,109430.0,1.28176]
[1756999337209,1.08838084,109440.0,109430.0,0.92096]
[1756999338211,0.08086,109430.0,109420.0,0.0001]
[1756999338413,0.82438084,109430.0,109420.0,0.92092]
[1756999339208,0.82538084,109430.0,109420.0,0.92092]
[1756999339407,0.40186,109430.0,109420.0,0.92092]
[1756999340614,0.65186,109430.0,109420.0,0.92092]
[1756999340806,1.07538084,109430.0,109410.0,0.3609]
[1756999341007,0.50116084,109420.0,109410.0,0.3609]
[1756999341212,0.81116084,109420.0,109410.0,1.28168]
[1756999341411,0.38764,109420.0,109410.0,1.28168]
[1756999341911,0.38764,109420.0,109410.0,0.3608]
[1756999342108,0.38764,109420.0,109410.0,1.28168]
[1756999342710,0.38764,109420.0,109410.0,0.3608]
[1756999342904,0.38764,109420.0,109410.0,1.28368]
[1756999343110,0.38764,109420.0,109410.0,1.28364]
[1756999343506,0.02982,109410.0,109400.0,1.83976075]
[1756999343816,0.32982,109410.0,109400.0,2.68736]
[1756999345215,0.33182,109410.0,109400.0,2.68736]
[1756999345915,0.33282,109410.0,109400.0,2.68736]
[1756999347412,0.07764,109400.0,109390.0,0.2653]
[1756999347606,0.07764,109400.0,109390.0,0.92084]
[1756999347607,0.84116084,109400.0,109390.0,0.92084]
[1756999347806,0.41764,109400.0,109390.0,0.92084]
[1756999348405,0.41764,109400.0,109390.0,1.28164]
[1756999348609,0.41864,109400.0,109390.0,1.28164]
[1756999349809,0.41864,109400.0,109390.0,1.39671299]
[1756999350407,0.42763603,109400.0,109390.0,1.39671299]
[1756999352221,0.42763603,109400.0,109390.0,1.03591299]
[1756999352527,0.42763603,109400.0,109390.0,1.39671299]
[1756999353114,0.42763603,109400.0,109390.0,1.28164]
[1756999355513,1.11021179,109400.0,109390.0,1.28164]
[1756999356024,0.42763603,109400.0,109390.0,1.28164]
[1756999356222,1.11021179,109400.0,109390.0,1.28164]
[1756999356416,0.76892391,109400.0,109390.0,1.62292788]
[1756999356621,0.42763603,109400.0,109390.0,1.62292788]
[1756999356821,0.76892391,109400.0,109390.0,1.62292788]
[1756999358117,0.42763603,109400.0,109390.0,1.62292788]
[1756999358325,0.76892391,109400.0,109390.0,1.28164]
[1756999358522,0.76892391,109400.0,109390.0,1.62292788]
[1756999360230,1.11021179,109400.0,109390.0,1.28164]
[1756999360724,1.11021179,109400.0,109390.0,0.3608]
[1756999360931,0.76892391,109400.0,109390.0,1.28128]
[1756999361128,0.76892391,109400.0,109390.0,1.62256788]
[1756999361728,1.11021179,109400.0,109390.0,1.28128]
[1756999362029,0.42763603,109400.0,109390.0,1.28128]
[1756999362223,1.11021179,109400.0,109390.0,1.28128]
[1756999362424,0.42763603,109400.0,109390.0,0.3608]
[1756999362633,1.11021179,109400.0,109390.0,1.28124]
[1756999363330,0.42763603,109400.0,109390.0,1.62252788]
[1756999363834,0.72110391,109400.0,109390.0,1.28124]
[1756999364024,0.37981603,109400.0,109390.0,1.62252788]
[1756999364227,0.72110391,109400.0,109390.0,1.62252788]
[1756999364421,0.37981603,109400.0,109390.0,1.62252788]
[1756999364626,0.34999603,109400.0,109390.0,1.62252788]
[1756999365026,0.34999603,109400.0,109390.0,1.87252788]
[1756999365231,0.341,109400.0,109390.0,2.21381576]
[1756999365426,0.341,109400.0,109390.0,2.30521526]
[1756999365627,0.001,109400.0,109390.0,2.87581158]
[1756999365832,0.061,109400.0,109390.0,2.5345237]
[1756999366135,0.321,109400.0,109390.0,2.5345237]
[1756999366323,0.301,109400.0,109390.0,2.1928842]
[1756999366830,0.301,109400.0,109390.0,1.2726842]
[1756999367031,0.301,109400.0,109390.0,1.51026844]
[1756999367235,0.301,109400.0,109390.0,2.1928442]
[1756999367427,0.341,109400.0,109390.0,1.2726842]
[1756999367631,0.341,109400.0,109390.0,2.1928042]
[1756999368030,0.341,109400.0,109390.0,1.2726842]
[1756999368231,0.341,109400.0,109390.0,0.59010844]
[1756999368431,0.341,109400.0,109390.0,1.85143632]
[1756999368632,0.37082,109400.0,109390.0,1.37225185]
[1756999368829,0.341,109400.0,109390.0,1.71353973]
[1756999369038,0.37082,109400.0,109390.0,1.71349973]
[1756999369640,0.341,109400.0,109390.0,1.71349973]
[1756999370138,0.41521,109400.0,109390.0,1.71341973]
[1756999370639,0.36913,109400.0,109390.0,1.71341973]
[1756999370938,0.341,109400.0,109390.0,1.71341973]
[1756999373639,0.36913,109400.0,109390.0,1.71325973]
[1756999374133,0.41521,109400.0,109390.0,1.71317973]
[1756999374335,0.36913,109400.0,109390.0,1.71317973]
[1756999374732,0.341,109400.0,109390.0,2.14586711]
[1756999375338,0.341,109400.0,109390.0,2.2609401]
[1756999375736,0.321,109400.0,109390.0,2.2609401]
[1756999375940,0.291,109400.0,109390.0,2.2609401]
[1756999377037,0.291,109400.0,109390.0,2.14586711]
[1756999377434,0.291,109400.0,109390.0,2.29766711]
[1756999377635,0.02813,109450.0,109430.0,0.0913596]
[1756999377831,0.06,109450.0,109440.0,1.40417576]
[1756999378037,0.35,109450.0,109440.0,2.41493366]
[1756999378236,0.35,109450.0,109440.0,2.50634551]
[1756999378938,0.354,109450.0,109440.0,2.50634551]
[1756999379541,0.354,109450.0,109440.0,2.24979655]
[1756999380341,0.355,109450.0,109440.0,2.24979655]
[1756999380542,0.362,109450.0,109440.0,2.50079655]
[1756999380741,0.362,109450.0,109440.0,2.92682335]
[1756999380942,0.362,109450.0,109440.0,2.50051655]
[1756999381142,0.362,109450.0,109440.0,1.15536975]
[1756999381339,0.362,109450.0,109440.0,2.50051655]
[1756999381747,0.357,109450.0,109440.0,1.58239655]
[1756999382248,0.357,109450.0,109440.0,2.57294671]
[1756999382750,0.357,109450.0,109440.0,2.57290671]
[1756999382945,0.357,109450.0,109440.0,1.65394671]
[1756999383250,0.357,109450.0,109440.0,2.57186671]
[1756999383443,0.35,109450.0,109440.0,2.57286671]
[1756999383642,0.35,109450.0,109440.0,2.57278671]
[1756999384351,0.35,109450.0,109440.0,1.76889629]
[1756999384542,0.35,109450.0,109440.0,2.68761629]
[1756999384743,0.35,109450.0,109440.0,2.57266671]
[1756999385046,0.35,109450.0,109440.0,2.68761629]
[1756999385442,0.35,109450.0,109440.0,1.22791991]
[1756999385642,0.35,109450.0,109440.0,2.57258671]
[1756999388140,0.35,109450.0,109440.0,2.99861351]
[1756999388654,0.03707495,109470.0,109450.0,0.0913421]
[1756999388853,0.41315495,109470.0,109460.0,1.64]
[1756999389456,0.66315495,109470.0,109460.0,0.7216]
[1756999389649,1.08918175,109470.0,109460.0,1.63984]
[1756999390056,0.66315495,109470.0,109460.0,1.63984]
[1756999390953,0.66415495,109470.0,109460.0,1.63984]
[1756999391145,0.66615495,109470.0,109460.0,1.63984]
[1756999391851,0.62007495,109470.0,109460.0,1.63984]
[1756999392056,0.62007495,109470.0,109460.0,2.1572081]
[1756999392057,0.34194495,109470.0,109460.0,2.1572081]
[1756999392251,0.34194495,109470.0,109460.0,2.2485615]
[1756999392252,0.333,109470.0,109460.0,2.2485615]
[1756999392453,0.333,109470.0,109460.0,2.4985615]
[1756999392650,0.333,109470.0,109460.0,2.2485615]
[1756999394153,0.333,109470.0,109460.0,1.2389802]
[1756999394455,0.333,109470.0,109460.0,2.2482815]
[1756999394857,0.36113,109470.0,109460.0,1.2389802]
[1756999395051,0.36113,109470.0,109460.0,2.1568202]
[1756999395257,0.36113,109470.0,109460.0,1.8221347]
[1756999395956,0.36113,109470.0,109460.0,2.2481615]
[1756999396757,0.36113,109470.0,109460.0,2.2480815]
[1756999396952,0.36113,109470.0,109460.0,1.8220547]
[1756999397159,0.36113,109470.0,109460.0,2.2480815]
[1756999397652,0.36113,109470.0,109460.0,1.8220547]
[1756999397859,0.40721,109470.0,109460.0,0.8129534]
[1756999398052,0.40721,109470.0,109460.0,1.63912]
[1756999398253,0.40721,109470.0,109460.0,0.7216]
[1756999398457,0.65721,109470.0,109460.0,1.63908]
[1756999401659,0.333,109470.0,109460.0,2.2478015]
[1756999403255,0.33,109470.0,109460.0,2.2478015]
[1756999403457,0.33,109470.0,109460.0,2.2548015]
[1756999404164,0.33,109470.0,109460.0,2.2518015]
[1756999404364,0.33,109470.0,109460.0,2.2538015]
[1756999404958,0.33,109470.0,109460.0,2.5038015]
[1756999405258,0.33,109470.0,109460.0,2.64708195]
[1756999407066,0.33,109470.0,109460.0,1.04444971]
[1756999407261,0.35775,109470.0,109460.0,2.38743651]
[1756999407459,0.35775,109470.0,109460.0,1.96140971]
[1756999407658,0.35775,109470.0,109460.0,2.38743651]
[1756999407859,0.35775,109470.0,109460.0,1.96140971]
[1756999408060,0.35775,109470.0,109460.0,2.38743651]
[1756999408463,0.35775,109470.0,109460.0,2.38543651]
[1756999408662,0.35775,109470.0,109460.0,2.38643651]
[1756999408961,0.35775,109470.0,109460.0,2.65163651]
[1756999409656,0.35775,109470.0,109460.0,2.22360971]
[1756999409965,0.35775,109470.0,109460.0,2.65063651]
[1756999410562,0.35775,109470.0,109460.0,1.64233501]
[1756999410767,0.35775,109470.0,109460.0,1.90548]
[1756999411467,0.35775,109470.0,109460.0,2.3315068]
[1756999411668,0.65768,109470.0,109460.0,1.90544]
[1756999411963,0.65768,109470.0,109460.0,1.6402]
[1756999412265,0.65768,109470.0,109460.0,2.1575683]
[1756999412467,0.60775,109470.0,109460.0,2.1575683]
[1756999412660,0.35775,109470.0,109460.0,2.1575683]
[1756999412860,0.33,109470.0,109460.0,2.2479217]
[1756999413063,0.33,109470.0,109460.0,2.4979217]
[1756999413568,0.33,109470.0,109460.0,2.4969217]
[1756999413777,0.33,109470.0,109460.0,2.0708949]
[1756999413957,0.33,109470.0,109460.0,2.4969217]
[1756999414372,0.33,109470.0,109460.0,4.2640417]
[1756999414869,0.33,109470.0,109460.0,4.5292417]
[1756999415466,0.33,109470.0,109460.0,4.52622167]
[1756999415770,0.33,109470.0,109460.0,4.1032149]
[1756999415971,0.33,109470.0,109460.0,4.52622167]
[1756999416571,0.33,109470.0,109460.0,4.52822167]
[1756999416768,0.33,109470.0,109460.0,4.1052149]
[1756999417172,0.33,109470.0,109460.0,4.52822167]
[1756999418773,0.33,109470.0,109460.0,4.52826167]
[1756999420566,0.33,109470.0,109460.0,5.21506461]
[1756999420772,0.02813,109500.0,109480.0,0.0913163]
[1756999420967,0.31813,109500.0,109490.0,1.7289563]
[1756999421162,0.29,109500.0,109490.0,2.15196307]
[1756999421366,0.29,109500.0,109490.0,2.50851647]
[1756999421663,0.29,109500.0,109490.0,2.0855097]
[1756999421868,0.29,109500.0,109490.0,2.24331647]
[1756999422275,0.29,109500.0,109490.0,1.8203097]
[1756999422473,0.29,109500.0,109490.0,2.24323647]
[1756999422771,0.29,109500.0,109490.0,2.15192017]
[1756999422977,0.29,109500.0,109490.0,2.24323647]
[1756999423467,0.31775,109500.0,109490.0,2.24323647]
[1756999423671,0.36968,109500.0,109490.0,1.7288334]
[1756999423867,0.61968,109500.0,109490.0,1.63748]
[1756999424064,0.62068,109500.0,109490.0,0.7216]
[1756999424270,0.61868,109500.0,109490.0,1.6374]
[1756999424475,0.61868,109500.0,109490.0,1.63736]
[1756999425366,0.61768,109500.0,109490.0,1.63736]
[1756999425972,0.61768,109500.0,109490.0,0.7216]
[1756999426272,0.61768,109500.0,109490.0,1.63724]
[1756999426870,0.61768,109500.0,109490.0,0.7216]
[1756999427170,0.61768,109500.0,109490.0,1.6372]
[1756999427371,0.36768,109500.0,109490.0,1.6372]
[1756999427585,0.36968,109500.0,109490.0,1.6372]
[1756999428469,0.36968,109500.0,109490.0,0.7216]
[1756999428671,0.36968,109500.0,109490.0,1.63712]
[1756999428871,0.36968,109500.0,109490.0,1.63708]
[1756999429070,0.37068,109500.0,109490.0,1.63708]
[1756999429268,0.32075,109500.0,109490.0,1.63708]
[1756999429472,0.32075,109500.0,109490.0,2.15140317]
[1756999430175,0.31975,109500.0,109490.0,2.15140317]
[1756999430576,0.31775,109500.0,109490.0,2.15140317]
[1756999430783,0.29,109500.0,109490.0,2.49273154]
[1756999433479,0.36724,109500.0,109490.0,1.63672]
[1756999433775,0.36724,109500.0,109490.0,1.63668]
[1756999434373,0.36724,109500.0,109490.0,0.71555706]
[1756999434574,0.61724,109500.0,109490.0,1.63059706]
[1756999434978,0.61724,109500.0,109490.0,1.63055706]
[1756999435179,0.61724,109500.0,109490.0,0.71555706]
[1756999435370,0.61724,109500.0,109490.0,1.63055706]
[1756999435770,0.61824,109500.0,109490.0,1.63055706]
[1756999437280,0.62024,109500.0,109490.0,1.63055706]
[1756999437882,0.61924,109500.0,109490.0,1.63055706]
[1756999439083,0.61924,109500.0,109490.0,0.71555706]
[1756999439283,0.36924,109500.0,109490.0,1.63027706]
[1756999439486,0.36924,109500.0,109490.0,0.71555706]
[1756999439680,0.36924,109500.0,109490.0,1.63023706]
[1756999439880,0.36924,109500.0,109490.0,0.71555706]
[1756999440081,0.36924,109500.0,109490.0,1.63019706]
[1756999440282,0.36724,109500.0,109490.0,1.63019706]
[1756999441887,0.32042,109500.0,109490.0,2.14452033]
[1756999442288,0.292,109500.0,109490.0,2.39452033]
[1756999443183,0.292,109500.0,109490.0,2.4858487]
[1756999443383,0.29,109500.0,109490.0,2.4858487]
[1756999444286,0.29,109500.0,109490.0,4.2506087]
[1756999444488,0.29,109500.0,109490.0,4.2503287]
[1756999444889,0.31842,109500.0,109490.0,2.48031706]
[1756999445090,0.31842,109500.0,109490.0,3.39451706]
[1756999445289,0.31842,109500.0,109490.0,3.48583356]
[1756999445791,0.31842,109500.0,109490.0,3.48683356]
[1756999445992,0.31842,109500.0,109490.0,3.39551706]
[1756999446391,0.31842,109500.0,109490.0,3.48683356]
[1756999446990,0.31842,109500.0,109490.0,3.48783356]
[1756999447188,0.29,109500.0,109490.0,3.48783356]
[1756999447390,0.29,109500.0,109490.0,3.60278314]
[1756999447692,0.31842,109500.0,109490.0,3.60278314]
[1756999448493,0.29,109500.0,109490.0,3.60278314]
[1756999448693,0.29,109500.0,109490.0,3.94411151]
[1756999448994,0.29,109500.0,109490.0,4.36711828]
[1756999449694,0.29,109500.0,109490.0,4.2521687]
[1756999449894,0.29,109500.0,109490.0,4.27574124]
[1756999450294,0.31842,109500.0,109490.0,3.85233447]
[1756999450790,0.31842,109500.0,109490.0,3.85225447]
[1756999451195,0.31842,109500.0,109490.0,3.5108861]
[1756999452490,0.56842,109500.0,109490.0,2.5972061]
[1756999452698,0.56842,109500.0,109490.0,3.5108461]
[1756999453886,0.56842,109500.0,109490.0,1.7460861]
[1756999454094,0.56842,109500.0,109490.0,1.7440861]
[1756999454397,0.57042,109500.0,109490.0,1.7440861]
[1756999455299,0.57142,109500.0,109490.0,1.7440861]
[1756999457589,1.04324677,109500.0,109490.0,1.7437261]
[1756999457794,0.62024,109500.0,109490.0,1.7437261]
[1756999458895,0.62024,109500.0,109490.0,0.4696461]
[1756999459098,1.40404677,109500.0,109490.0,0.11488904]
[1756999459307,1.40404677,109500.0,109490.0,1.02792904]
[1756999459504,0.07724,109490.0,109480.0,0.11498904]
[1756999459699,1.17104677,109490.0,109480.0,1.02788904]
[1756999459893,1.17104677,109490.0,109480.0,0.913]
[1756999460104,0.02804,109480.0,109470.0,2.24042904]
[1756999460300,0.31804,109480.0,109470.0,3.03844]
[1756999461906,0.31804,109480.0,109470.0,3.03944]
[1756999462100,0.31804,109480.0,109470.0,3.15436005]
[1756999462306,0.31804,109480.0,109470.0,2.24236005]
[1756999462701,0.56804,109480.0,109470.0,2.79436005]
[1756999463607,0.99104677,109480.0,109470.0,2.79436005]
[1756999463806,0.99104677,109480.0,109470.0,2.79432005]
[1756999464008,0.99104677,109480.0,109470.0,1.88156005]
[1756999464209,1.35184677,109480.0,109470.0,2.79424005]
[1756999464710,0.92884,109480.0,109470.0,2.79424005]
[1756999464911,1.35184677,109480.0,109470.0,2.79424005]
[1756999465211,1.35184677,109480.0,109470.0,2.79428005]
[1756999465406,1.35184677,109480.0,109470.0,2.67936]
[1756999465709,1.35184677,109480.0,109470.0,2.67924]
[1756999467712,1.4232539,109480.0,109470.0,2.67924]
[1756999468109,1.4232539,109480.0,109470.0,0.9146]
[1756999468110,1.4715339,109480.0,109470.0,0.9146]
[1756999468309,1.7815339,109480.0,109460.0,0.00014]
[1756999468608,0.86012677,109470.0,109460.0,0.00014]
[1756999468808,1.19012677,109470.0,109460.0,0.91244]
[1756999469208,1.44012677,109470.0,109460.0,0.91244]
[1756999469404,1.44012677,109470.0,109460.0,0.9124]
[1756999469607,1.44012677,109470.0,109460.0,0.00204]
[1756999469812,1.44012677,109470.0,109460.0,0.91436]
[1756999470406,1.44012677,109470.0,109460.0,0.91236]
[1756999470608,1.76012677,109470.0,109460.0,0.91436]
[1756999470809,1.44012677,109470.0,109460.0,0.91436]
[1756999471314,1.44012677,109470.0,109460.0,0.91636]
[1756999474427,1.44012677,109470.0,109460.0,0.91604]
[1756999474928,1.44012677,109470.0,109460.0,0.00404]
[1756999475127,1.19012677,109470.0,109450.0,0.0001]
[1756999475419,0.86334543,109460.0,109450.0,0.91198]
[1756999475618,1.15334543,109460.0,109450.0,0.91188]
[1756999476624,1.15334543,109460.0,109450.0,0.91388]
[1756999478326,1.15334543,109460.0,109450.0,0.91188]
[1756999478526,1.15334543,109460.0,109450.0,0.91388]
[1756999478722,1.15334543,109460.0,109450.0,0.91588]
[1756999479326,1.15334543,109460.0,109450.0,0.91388]
[1756999479525,1.15334543,109460.0,109450.0,0.91588]
[1756999481425,1.40909782,109460.0,109450.0,0.91588]
[1756999481825,1.04829782,109460.0,109450.0,0.91588]
[1756999484624,1.04829782,109460.0,109450.0,0.9152]
[1756999485132,1.38928673,109460.0,109450.0,0.91512]
[1756999485722,1.04829782,109460.0,109450.0,0.91512]
[1756999486321,1.04829782,109460.0,109450.0,0.91112]
[1756999486733,1.04829782,109460.0,109450.0,0.91212]
[1756999486734,1.41709782,109460.0,109450.0,0.91212]
[1756999487633,1.75808673,109460.0,109450.0,0.001]
[1756999487830,1.41709782,109460.0,109450.0,0.91192]
[1756999490733,0.73512,109460.0,109450.0,0.91192]
[1756999491129,1.41709782,109460.0,109450.0,0.91192]
[1756999492647,1.41709782,109460.0,109450.0,0.91136]
[1756999494648,0.298,109460.0,109450.0,2.27568847]
[1756999494839,0.298,109460.0,109450.0,2.38684796]
[1756999495140,0.298,109460.0,109450.0,0.70316174]
[1756999495445,0.298,109460.0,109450.0,2.04517956]
[1756999495647,0.298,109460.0,109450.0,2.3453358]
[1756999496445,0.293,109460.0,109450.0,2.3443358]
[1756999496649,0.293,109460.0,109450.0,2.3463358]
[1756999497146,0.29,109460.0,109450.0,1.4342958]
[1756999497454,0.291,109460.0,109450.0,2.3440958]
[1756999497947,0.291,109460.0,109450.0,2.18120485]
[1756999498446,0.291,109460.0,109450.0,1.27140485]
[1756999498648,0.291,109460.0,109450.0,2.18100485]
[1756999498944,0.291,109460.0,109450.0,2.3438958]
[1756999499448,0.291,109460.0,109450.0,2.41605321]
[1756999500551,0.291,109460.0,109450.0,1.50645321]
[1756999500747,0.291,109460.0,109450.0,2.41577321]
[1756999501451,0.291,109460.0,109450.0,2.50712181]
[1756999501746,0.291,109460.0,109450.0,1.73379539]
[1756999501948,0.291,109460.0,109450.0,2.41577321]
[1756999502545,0.291,109460.0,109450.0,2.56757321]
[1756999502762,0.291,109460.0,109450.0,2.41577321]
[1756999503251,0.29,109460.0,109450.0,2.41553321]
[1756999503443,0.31858,109460.0,109450.0,2.41541321]
[1756999503644,0.31858,109460.0,109450.0,2.25352226]
[1756999503946,0.29,109460.0,109450.0,2.34487116]
[1756999504250,0.29,109460.0,109450.0,2.25252226]
[1756999504443,0.31858,109460.0,109450.0,2.25252226]
[1756999504648,0.31958,109460.0,109450.0,2.25252226]
[1756999504949,0.291,109460.0,109450.0,2.25252226]
[1756999505145,0.291,109460.0,109450.0,2.34387116]
[1756999506357,0.291,109460.0,109450.0,2.59387116]
[1756999506847,0.291,109460.0,109450.0,2.85907116]
[1756999507648,0.02842,109490.0,109450.0,3.44666007]
[1756999507951,0.31842,109490.0,109480.0,1.04277782]
[1756999508151,0.31842,109490.0,109480.0,1.95121782]
[1756999508355,0.31842,109490.0,109480.0,1.26924]
[1756999508745,0.70322891,109490.0,109480.0,1.61018891]